[Event "Early-Titled-Tuesday-Blitz-March-05-2024"]
[Site "Chess.com"]
[Date "2024.03.05"]
[Round "11"]
[White "TimGrutter03"]
[Black "Sofiia_Hryzlova"]
[Result "0-1"]
[WhiteElo "2621"]
[BlackElo "2533"]
[TimeControl "180+1"]
[EndTime "10:10:45 PST"]
[Termination "Sofiia_Hryzlova won by checkmate"]

1. e4 {[%clk 0:03:00.9]} 1... e5 {[%clk 0:02:54.4]} 2. d4 {[%clk 0:02:59.8]}
2... d6 {[%clk 0:02:53.3]} 3. dxe5 {[%clk 0:02:57.1]} 3... dxe5 {[%clk
0:02:53.2]} 4. Qxd8+ {[%clk 0:02:56.4]} 4... Kxd8 {[%clk 0:02:54.1]} 5. f4
{[%clk 0:02:51.9]} 5... Nc6 {[%clk 0:02:49.3]} 6. Nf3 {[%clk 0:02:49.9]} 6...
Bd6 {[%clk 0:02:39.6]} 7. Bb5 {[%clk 0:02:43.7]} 7... f6 {[%clk 0:02:35.7]} 8.
Bxc6 {[%clk 0:02:38.8]} 8... bxc6 {[%clk 0:02:35.1]} 9. Nbd2 {[%clk 0:02:37.6]}
9... exf4 {[%clk 0:02:32.5]} 10. Nc4 {[%clk 0:02:37.7]} 10... g5 {[%clk
0:02:27.9]} 11. b3 {[%clk 0:02:25.7]} 11... Bg4 {[%clk 0:02:25.5]} 12. Bb2
{[%clk 0:02:22.6]} 12... Ke7 {[%clk 0:02:17]} 13. Nxg5 {[%clk 0:02:21]} 13...
Nh6 {[%clk 0:01:51.4]} 14. Nf3 {[%clk 0:02:11.9]} 14... Rhe8 {[%clk 0:01:44.6]}
15. O-O-O {[%clk 0:02:05.6]} 15... Be6 {[%clk 0:01:29.1]} 16. Bxf6+ {[%clk
0:01:52.8]} 16... Kxf6 {[%clk 0:01:24]} 17. e5+ {[%clk 0:01:53.4]} 17... Bxe5
{[%clk 0:01:10.8]} 18. Ncxe5 {[%clk 0:01:54.3]} 18... Bd5 {[%clk 0:01:07.7]} 19.
c4 {[%clk 0:01:44]} 19... Be4 {[%clk 0:00:59.6]} 20. Rhe1 {[%clk 0:01:37.3]}
20... Rxe5 {[%clk 0:00:49.4]} 21. Nxe5 {[%clk 0:01:37.5]} 21... Kxe5 {[%clk
0:00:50.3]} 22. Rd7 {[%clk 0:01:34]} 22... Nf5 {[%clk 0:00:47.8]} 23. Rxh7
{[%clk 0:01:28.9]} 23... Ne3 {[%clk 0:00:47.2]} 24. Re7+ {[%clk 0:01:25.8]}
24... Kd4 {[%clk 0:00:38]} 25. Rxc7 {[%clk 0:01:19.5]} 25... Bxg2 {[%clk
0:00:34.6]} 26. Rf7 {[%clk 0:01:12.2]} 26... Ke4 {[%clk 0:00:32.7]} 27. Rg7
{[%clk 0:01:00.7]} 27... Kf3 {[%clk 0:00:30.3]} 28. Kd2 {[%clk 0:00:42.6]} 28...
Rd8+ {[%clk 0:00:28.8]} 29. Kc3 {[%clk 0:00:43]} 29... Kf2 {[%clk 0:00:28]} 30.
Rb1 {[%clk 0:00:43.1]} 30... Nd1+ {[%clk 0:00:23.6]} 31. Kb4 {[%clk 0:00:39.6]}
31... f3 {[%clk 0:00:22.3]} 32. Kc5 {[%clk 0:00:33.8]} 32... Kg1 {[%clk
0:00:20.3]} 33. Rf7 {[%clk 0:00:31.5]} 33... f2 {[%clk 0:00:18.2]} 34. h4 {[%clk
0:00:22.8]} 34... f1=Q {[%clk 0:00:17.2]} 35. Rxf1+ {[%clk 0:00:23.7]} 35...
Kxf1 {[%clk 0:00:16.9]} 36. b4 {[%clk 0:00:21.9]} 36... Ke2 {[%clk 0:00:15.7]}
37. b5 {[%clk 0:00:21.2]} 37... cxb5 {[%clk 0:00:14.5]} 38. cxb5 {[%clk
0:00:22.1]} 38... Rc8+ {[%clk 0:00:14.4]} 39. Kd4 {[%clk 0:00:17.3]} 39... Rb8
{[%clk 0:00:11.2]} 40. a4 {[%clk 0:00:16.4]} 40... Bf3 {[%clk 0:00:10.2]} 41. a5
{[%clk 0:00:15.5]} 41... Kd2 {[%clk 0:00:09.8]} 42. Rb4 {[%clk 0:00:05.9]} 42...
Be2 {[%clk 0:00:09.2]} 43. b6 {[%clk 0:00:05.2]} 43... a6 {[%clk 0:00:09.7]} 44.
b7 {[%clk 0:00:03.9]} 44... Bb5 {[%clk 0:00:09.6]} 45. Kc5 {[%clk 0:00:04.1]}
45... Rxb7 {[%clk 0:00:09.6]} 46. h5 {[%clk 0:00:04.8]} 46... Ne3 {[%clk
0:00:09.2]} 47. h6 {[%clk 0:00:04.5]} 47... Nc2 {[%clk 0:00:09.2]} 48. Rh4
{[%clk 0:00:02.2]} 48... Rh7 {[%clk 0:00:08.8]} 49. Kb6 {[%clk 0:00:02.7]} 49...
Ne3 {[%clk 0:00:08.6]} 50. Kc5 {[%clk 0:00:01.4]} 50... Nf5 {[%clk 0:00:08.4]}
51. Rh2+ {[%clk 0:00:01.3]} 51... Ke3 {[%clk 0:00:08.9]} 52. Rh5 {[%clk
0:00:01.5]} 52... Kf4 {[%clk 0:00:09.1]} 53. Rh1 {[%clk 0:00:01.2]} 53... Rxh6
{[%clk 0:00:09]} 54. Rg1 {[%clk 0:00:01.9]} 54... Ke5 {[%clk 0:00:09]} 55. Kb4
{[%clk 0:00:02.4]} 55... Rc6 {[%clk 0:00:09]} 56. Re1+ {[%clk 0:00:01.6]} 56...
Kd5 {[%clk 0:00:09.2]} 57. Rd1+ {[%clk 0:00:02.2]} 57... Nd4 {[%clk 0:00:09.5]}
58. Rh1 {[%clk 0:00:02.2]} 58... Rc4+ {[%clk 0:00:09.7]} 59. Ka3 {[%clk
0:00:02.7]} 59... Rc3+ {[%clk 0:00:09.3]} 60. Kb2 {[%clk 0:00:02.9]} 60... Kc4
{[%clk 0:00:09.3]} 61. Rh8 {[%clk 0:00:02.5]} 61... Rc2+ {[%clk 0:00:09.5]} 62.
Kb1 {[%clk 0:00:02.2]} 62... Kb4 {[%clk 0:00:09.8]} 63. Rh4 {[%clk 0:00:02]}
63... Rd2 {[%clk 0:00:10]} 64. Kc1 {[%clk 0:00:01.8]} 64... Kc3 {[%clk
0:00:09.7]} 65. Rh3+ {[%clk 0:00:01.5]} 65... Rd3 {[%clk 0:00:09.4]} 66. Rh8
{[%clk 0:00:02]} 66... Nb3+ {[%clk 0:00:09.2]} 67. Kb1 {[%clk 0:00:01.3]} 67...
Rd1+ {[%clk 0:00:09.8]} 68. Ka2 {[%clk 0:00:01.8]} 68... Ra1# {[%clk 0:00:09.7]}
0-1

[Event "Early-Titled-Tuesday-Blitz-March-05-2024"]
[Site "Chess.com"]
[Date "2024.03.05"]
[Round "11"]
[White "David_George21"]
[Black "ZuraTqebuchava"]
[Result "1-0"]
[WhiteElo "2412"]
[BlackElo "2257"]
[TimeControl "180+1"]
[EndTime "10:10:56 PST"]
[Termination "David_George21 won by checkmate"]

1. e4 {[%clk 0:03:00.9]} 1... g6 {[%clk 0:02:58.2]} 2. d4 {[%clk 0:03:00.1]}
2... Bg7 {[%clk 0:02:58.2]} 3. Nc3 {[%clk 0:03:00.6]} 3... c6 {[%clk 0:02:58.7]}
4. f4 {[%clk 0:03:00.3]} 4... d6 {[%clk 0:02:57.6]} 5. Nf3 {[%clk 0:02:59.8]}
5... Bg4 {[%clk 0:02:57.9]} 6. Be3 {[%clk 0:02:59.8]} 6... Qb6 {[%clk
0:02:55.7]} 7. a3 {[%clk 0:02:50.1]} 7... Bxf3 {[%clk 0:02:49.2]} 8. gxf3 {[%clk
0:02:39.9]} 8... e6 {[%clk 0:02:41.5]} 9. Bc4 {[%clk 0:02:19.3]} 9... d5 {[%clk
0:02:38.1]} 10. Bb3 {[%clk 0:02:18.7]} 10... Ne7 {[%clk 0:02:34]} 11. Qd2 {[%clk
0:02:14.8]} 11... Nd7 {[%clk 0:02:23.6]} 12. O-O-O {[%clk 0:02:12.8]} 12...
O-O-O {[%clk 0:02:21.7]} 13. Rhg1 {[%clk 0:02:09.7]} 13... Bf6 {[%clk
0:02:07.2]} 14. Na4 {[%clk 0:01:54.7]} 14... Qc7 {[%clk 0:02:06.5]} 15. Qb4
{[%clk 0:01:53.7]} 15... Nb6 {[%clk 0:01:42.5]} 16. Nc5 {[%clk 0:01:44.3]} 16...
Nd7 {[%clk 0:01:30.5]} 17. a4 {[%clk 0:01:34.3]} 17... Nxc5 {[%clk 0:01:29.3]}
18. dxc5 {[%clk 0:01:31.2]} 18... d4 {[%clk 0:01:06.3]} 19. Bd2 {[%clk
0:01:22.5]} 19... Rd7 {[%clk 0:00:49.4]} 20. a5 {[%clk 0:01:18.6]} 20... a6
{[%clk 0:00:47.7]} 21. Bc4 {[%clk 0:01:14.7]} 21... Rhd8 {[%clk 0:00:43.4]} 22.
Kb1 {[%clk 0:00:59.9]} 22... h5 {[%clk 0:00:40.7]} 23. Be1 {[%clk 0:00:48]}
23... h4 {[%clk 0:00:24.5]} 24. e5 {[%clk 0:00:19.9]} 24... Bg7 {[%clk 0:00:24]}
25. Bxh4 {[%clk 0:00:20]} 25... Rh8 {[%clk 0:00:24]} 26. Bxe7 {[%clk 0:00:19.7]}
26... Rxe7 {[%clk 0:00:24.1]} 27. Rg2 {[%clk 0:00:19.7]} 27... Rd7 {[%clk
0:00:19.9]} 28. Bd3 {[%clk 0:00:14.8]} 28... Bh6 {[%clk 0:00:15.7]} 29. Rg4
{[%clk 0:00:13]} 29... Bf8 {[%clk 0:00:15.5]} 30. h4 {[%clk 0:00:13.1]} 30...
Rd5 {[%clk 0:00:15.5]} 31. Be4 {[%clk 0:00:10.8]} 31... Rxc5 {[%clk 0:00:13.9]}
32. Qxd4 {[%clk 0:00:09.9]} 32... Rxa5 {[%clk 0:00:11]} 33. Rg2 {[%clk
0:00:08.4]} 33... Rb5 {[%clk 0:00:10]} 34. Rgd2 {[%clk 0:00:08.4]} 34... Be7
{[%clk 0:00:08.8]} 35. c4 {[%clk 0:00:06.4]} 35... Rb4 {[%clk 0:00:08.3]} 36.
Qc3 {[%clk 0:00:05.9]} 36... Qb6 {[%clk 0:00:06.1]} 37. Re2 {[%clk 0:00:04.4]}
37... Rxh4 {[%clk 0:00:05.3]} 38. Red2 {[%clk 0:00:04]} 38... Rh8 {[%clk
0:00:04.9]} 39. Rc2 {[%clk 0:00:03.4]} 39... Rd8 {[%clk 0:00:04.8]} 40. Rxd8+
{[%clk 0:00:03.1]} 40... Bxd8 {[%clk 0:00:05.7]} 41. Rd2 {[%clk 0:00:03.8]}
41... Be7 {[%clk 0:00:06.1]} 42. c5 {[%clk 0:00:04.2]} 42... Qxc5 {[%clk
0:00:05.9]} 43. Qd3 {[%clk 0:00:04.2]} 43... Qb6 {[%clk 0:00:05.7]} 44. Qd7+
{[%clk 0:00:04.4]} 44... Kb8 {[%clk 0:00:06.3]} 45. Qxe7 {[%clk 0:00:04.9]}
45... Ka7 {[%clk 0:00:06.9]} 46. Qd6 {[%clk 0:00:04.6]} 46... Qg1+ {[%clk
0:00:06.5]} 47. Ka2 {[%clk 0:00:04.4]} 47... Qb6 {[%clk 0:00:06]} 48. Qd3 {[%clk
0:00:04]} 48... Qa5+ {[%clk 0:00:05.5]} 49. Kb1 {[%clk 0:00:04.2]} 49... Ra4
{[%clk 0:00:05.8]} 50. Qb3 {[%clk 0:00:03.8]} 50... Ra1+ {[%clk 0:00:03.7]} 51.
Kc2 {[%clk 0:00:03.9]} 51... Qc5+ {[%clk 0:00:04]} 52. Qc3 {[%clk 0:00:04.2]}
52... Qg1 {[%clk 0:00:02.4]} 53. Kb3 {[%clk 0:00:02.8]} 53... Rc1 {[%clk
0:00:02]} 54. Qd4+ {[%clk 0:00:03.1]} 54... Qxd4 {[%clk 0:00:02.3]} 55. Rxd4
{[%clk 0:00:04]} 55... Re1 {[%clk 0:00:02.8]} 56. Rd7 {[%clk 0:00:04.3]} 56...
Re3+ {[%clk 0:00:03.3]} 57. Ka2 {[%clk 0:00:03.8]} 57... Re2 {[%clk 0:00:03.7]}
58. Rxf7 {[%clk 0:00:04]} 58... Rf2 {[%clk 0:00:04.3]} 59. Bxg6 {[%clk
0:00:04.2]} 59... Rd2 {[%clk 0:00:05.2]} 60. Be4 {[%clk 0:00:04.3]} 60... Rd8
{[%clk 0:00:06.1]} 61. Rf6 {[%clk 0:00:04.8]} 61... a5 {[%clk 0:00:06.9]} 62.
Rxe6 {[%clk 0:00:04.7]} 62... a4 {[%clk 0:00:07.8]} 63. f5 {[%clk 0:00:05.3]}
63... b5 {[%clk 0:00:08.7]} 64. f6 {[%clk 0:00:06]} 64... Kb6 {[%clk 0:00:09.2]}
65. f7 {[%clk 0:00:06.6]} 65... b4 {[%clk 0:00:10.1]} 66. Re8 {[%clk 0:00:06.9]}
66... Rd1 {[%clk 0:00:10.3]} 67. Bc2 {[%clk 0:00:05.7]} 67... Kb5 {[%clk
0:00:10.2]} 68. Bxd1 {[%clk 0:00:05.4]} 68... b3+ {[%clk 0:00:10.5]} 69. Bxb3
{[%clk 0:00:05.6]} 69... axb3+ {[%clk 0:00:09.3]} 70. Kxb3 {[%clk 0:00:06.5]}
70... c5 {[%clk 0:00:08]} 71. f8=Q {[%clk 0:00:07.4]} 71... c4+ {[%clk
0:00:08.4]} 72. Kc2 {[%clk 0:00:08.1]} 72... c3 {[%clk 0:00:08.3]} 73. Rb8+
{[%clk 0:00:08.1]} 73... Ka6 {[%clk 0:00:07.7]} 74. Qa3# {[%clk 0:00:08.1]} 1-0

[Event "Early-Titled-Tuesday-Blitz-March-05-2024"]
[Site "Chess.com"]
[Date "2024.03.05"]
[Round "11"]
[White "PositionalPanther"]
[Black "cristianserban1"]
[Result "1-0"]
[WhiteElo "2624"]
[BlackElo "2510"]
[TimeControl "180+1"]
[EndTime "10:11:08 PST"]
[Termination "PositionalPanther won by resignation"]

1. d4 {[%clk 0:03:00.9]} 1... Nf6 {[%clk 0:02:58.1]} 2. Bg5 {[%clk 0:03:01.3]}
2... d5 {[%clk 0:02:57.4]} 3. Nd2 {[%clk 0:03:00.4]} 3... c5 {[%clk 0:02:53.7]}
4. c3 {[%clk 0:02:47.9]} 4... cxd4 {[%clk 0:02:36.8]} 5. cxd4 {[%clk 0:02:47]}
5... Nc6 {[%clk 0:02:37.4]} 6. e3 {[%clk 0:02:44.5]} 6... Bf5 {[%clk 0:02:36.8]}
7. a3 {[%clk 0:02:42.2]} 7... e6 {[%clk 0:02:32.2]} 8. Qb3 {[%clk 0:02:36.6]}
8... Qb6 {[%clk 0:02:32.4]} 9. Qxb6 {[%clk 0:02:35.7]} 9... axb6 {[%clk
0:02:33.3]} 10. Bxf6 {[%clk 0:02:35]} 10... gxf6 {[%clk 0:02:31.5]} 11. Rc1
{[%clk 0:02:32.8]} 11... Bd6 {[%clk 0:02:26.7]} 12. Bb5 {[%clk 0:02:29.9]} 12...
Kd7 {[%clk 0:02:26.9]} 13. Ngf3 {[%clk 0:02:25.2]} 13... e5 {[%clk 0:01:46.4]}
14. Nh4 {[%clk 0:02:13.8]} 14... Be6 {[%clk 0:01:46.5]} 15. Nb3 {[%clk
0:02:01.9]} 15... Rhc8 {[%clk 0:01:45.1]} 16. Kd2 {[%clk 0:01:57.1]} 16... Ke7
{[%clk 0:01:37.3]} 17. g3 {[%clk 0:01:51]} 17... Na5 {[%clk 0:01:22.9]} 18. Nxa5
{[%clk 0:01:45.5]} 18... bxa5 {[%clk 0:01:21.5]} 19. Bd3 {[%clk 0:01:36]} 19...
e4 {[%clk 0:00:37.3]} 20. Bb5 {[%clk 0:01:35.3]} 20... Rc7 {[%clk 0:00:37.7]}
21. Rxc7+ {[%clk 0:01:34]} 21... Bxc7 {[%clk 0:00:38.6]} 22. Rc1 {[%clk
0:01:33.1]} 22... Bd6 {[%clk 0:00:39.1]} 23. Ng2 {[%clk 0:01:29.6]} 23... Rc8
{[%clk 0:00:36.8]} 24. Rxc8 {[%clk 0:01:28]} 24... Bxc8 {[%clk 0:00:37.7]} 25.
Ne1 {[%clk 0:01:07.5]} 25... Bd7 {[%clk 0:00:29.9]} 26. Bxd7 {[%clk 0:01:00.7]}
26... Kxd7 {[%clk 0:00:30]} 27. Ng2 {[%clk 0:01:00.2]} 27... b6 {[%clk
0:00:27.8]} 28. Nh4 {[%clk 0:00:59.9]} 28... Ke6 {[%clk 0:00:26.9]} 29. h3
{[%clk 0:00:59.8]} 29... b5 {[%clk 0:00:21.6]} 30. g4 {[%clk 0:00:57.3]} 30...
b4 {[%clk 0:00:17.7]} 31. a4 {[%clk 0:00:54.5]} 31... b3 {[%clk 0:00:16.1]} 32.
Kc3 {[%clk 0:00:49.1]} 32... Bb4+ {[%clk 0:00:15.8]} 33. Kxb3 {[%clk 0:00:49.1]}
33... Be1 {[%clk 0:00:16.7]} 34. Nf5 {[%clk 0:00:48.9]} 34... Bxf2 {[%clk
0:00:17]} 35. Ka3 {[%clk 0:00:48.8]} 35... Be1 {[%clk 0:00:16.2]} 36. Ng7+
{[%clk 0:00:47.6]} 36... Ke7 {[%clk 0:00:13.6]} 37. Nf5+ {[%clk 0:00:46.3]}
37... Ke6 {[%clk 0:00:14]} 38. Kb3 {[%clk 0:00:46.8]} 38... Kd7 {[%clk
0:00:11.5]} 39. Kc2 {[%clk 0:00:47.3]} 39... Ke6 {[%clk 0:00:11.4]} 40. Kd1
{[%clk 0:00:47.8]} 40... Bb4 {[%clk 0:00:12.1]} 41. Ng3 {[%clk 0:00:45.1]} 41...
Bd6 {[%clk 0:00:11.6]} 42. Nf5 {[%clk 0:00:42.8]} 42... Bb4 {[%clk 0:00:11.7]}
43. Ke2 {[%clk 0:00:43]} 43... Bf8 {[%clk 0:00:10.8]} 44. Kf2 {[%clk 0:00:40.3]}
44... Bb4 {[%clk 0:00:10.5]} 45. Kg2 {[%clk 0:00:39.4]} 45... Bd2 {[%clk
0:00:08.5]} 46. Kf2 {[%clk 0:00:39.1]} 46... Bb4 {[%clk 0:00:08.7]} 47. h4
{[%clk 0:00:39.6]} 47... Bd2 {[%clk 0:00:07.4]} 48. h5 {[%clk 0:00:38.4]} 48...
Bb4 {[%clk 0:00:07.1]} 49. Ke2 {[%clk 0:00:36.4]} 49... Bf8 {[%clk 0:00:06.1]}
50. Kd2 {[%clk 0:00:34.1]} 50... Bb4+ {[%clk 0:00:06.7]} 51. Kc2 {[%clk
0:00:33.2]} 51... Bf8 {[%clk 0:00:06.9]} 52. Ng3 {[%clk 0:00:27.3]} 52... Bb4
{[%clk 0:00:07.1]} 53. Kd1 {[%clk 0:00:23.5]} 53... Bd6 {[%clk 0:00:06.6]} 54.
Nf5 {[%clk 0:00:20.5]} 54... Bb4 {[%clk 0:00:06.7]} 55. Ke2 {[%clk 0:00:20.9]}
55... Bf8 {[%clk 0:00:07.2]} 56. Kf2 {[%clk 0:00:21.6]} 56... Bb4 {[%clk
0:00:07.8]} 57. Kg3 {[%clk 0:00:21.7]} 57... Be1+ {[%clk 0:00:08]} 58. Kh3
{[%clk 0:00:21.6]} 58... Bb4 {[%clk 0:00:08.9]} 59. h6 {[%clk 0:00:21.3]} 59...
Bf8 {[%clk 0:00:08.9]} 60. Kh4 {[%clk 0:00:21.4]} 60... Bb4 {[%clk 0:00:08.1]}
61. b3 {[%clk 0:00:21.7]} 61... Be1+ {[%clk 0:00:07.8]} 62. Kh5 {[%clk 0:00:21]}
62... Bd2 {[%clk 0:00:08.4]} 63. Kh4 {[%clk 0:00:19.3]} 63... Bc1 {[%clk
0:00:08.7]} 64. Kg3 {[%clk 0:00:19.7]} 64... Bd2 {[%clk 0:00:09.1]} 65. Kf2
{[%clk 0:00:20.1]} 65... Bb4 {[%clk 0:00:09.8]} 66. Ng3 {[%clk 0:00:19.9]} 66...
Bf8 {[%clk 0:00:09.9]} 67. Nf5 {[%clk 0:00:17.3]} 67... Bb4 {[%clk 0:00:10.6]}
68. Ke2 {[%clk 0:00:17.7]} 68... Bf8 {[%clk 0:00:10.6]} 69. Ng7+ {[%clk
0:00:16]} 69... Kd7 {[%clk 0:00:08.1]} 70. Kd2 {[%clk 0:00:13.9]} 70... Bb4+
{[%clk 0:00:08]} 71. Ke2 {[%clk 0:00:14.2]} 71... Bf8 {[%clk 0:00:08.1]} 72. Kf2
{[%clk 0:00:14.3]} 72... Bb4 {[%clk 0:00:08.4]} 73. Kg3 {[%clk 0:00:14.4]} 73...
Be1+ {[%clk 0:00:08.6]} 74. Kf4 {[%clk 0:00:14.7]} 74... Bb4 {[%clk 0:00:09.5]}
75. Nh5 {[%clk 0:00:12.5]} 75... Ke6 {[%clk 0:00:09.2]} 76. Ng7+ {[%clk
0:00:12.1]} 76... Ke7 {[%clk 0:00:08.9]} 77. Kf5 {[%clk 0:00:12.1]} 77... Bd2
{[%clk 0:00:09.5]} 78. Nh5 {[%clk 0:00:11.9]} 78... Bxe3 {[%clk 0:00:09.7]} 79.
Nxf6 {[%clk 0:00:12.5]} 79... Bxh6 {[%clk 0:00:10.3]} 80. Nxd5+ {[%clk
0:00:12.4]} 80... Kd6 {[%clk 0:00:10.6]} 81. Kxe4 {[%clk 0:00:13]} 81... Bg7
{[%clk 0:00:10.2]} 82. Ne3 {[%clk 0:00:12.6]} 82... Bh6 {[%clk 0:00:01.1]} 83.
Nf5+ {[%clk 0:00:12.3]} 83... Kc6 {[%clk 0:00:01.2]} 84. Nxh6 {[%clk 0:00:13.2]}
1-0

[Event "Early-Titled-Tuesday-Blitz-March-05-2024"]
[Site "Chess.com"]
[Date "2024.03.05"]
[Round "11"]
[White "FairChess_on_YouTube"]
[Black "ActorXu"]
[Result "1-0"]
[WhiteElo "3097"]
[BlackElo "2862"]
[TimeControl "180+1"]
[EndTime "10:11:15 PST"]
[Termination "FairChess_on_YouTube won by resignation"]

1. e4 {[%clk 0:02:56.7]} 1... e5 {[%clk 0:02:59.6]} 2. Nf3 {[%clk 0:02:56.3]}
2... Nf6 {[%clk 0:03:00]} 3. Nxe5 {[%clk 0:02:55.7]} 3... d6 {[%clk 0:03:00.3]}
4. Nf3 {[%clk 0:02:55.4]} 4... Nxe4 {[%clk 0:03:00.4]} 5. Bd3 {[%clk 0:02:55.5]}
5... Nf6 {[%clk 0:03:00.2]} 6. O-O {[%clk 0:02:55.2]} 6... Be7 {[%clk
0:03:00.2]} 7. c3 {[%clk 0:02:55.2]} 7... O-O {[%clk 0:02:59.8]} 8. Bc2 {[%clk
0:02:55.8]} 8... d5 {[%clk 0:02:58]} 9. d4 {[%clk 0:02:56.3]} 9... Bg4 {[%clk
0:02:50.4]} 10. Re1 {[%clk 0:02:56.4]} 10... Bd6 {[%clk 0:02:41.2]} 11. Nbd2
{[%clk 0:02:48.7]} 11... Nbd7 {[%clk 0:02:40.5]} 12. Nf1 {[%clk 0:02:48.6]}
12... Re8 {[%clk 0:02:32.2]} 13. Rxe8+ {[%clk 0:02:33.7]} 13... Qxe8 {[%clk
0:02:32.3]} 14. Qd3 {[%clk 0:02:19.1]} 14... Bh5 {[%clk 0:01:55.6]} 15. Bg5
{[%clk 0:02:01.7]} 15... Bg6 {[%clk 0:01:50.6]} 16. Qd1 {[%clk 0:02:00]} 16...
Bxc2 {[%clk 0:01:20.1]} 17. Qxc2 {[%clk 0:02:00.9]} 17... c6 {[%clk 0:01:17.3]}
18. Re1 {[%clk 0:01:59.1]} 18... Qf8 {[%clk 0:01:17.4]} 19. Qb3 {[%clk
0:01:58.5]} 19... Rb8 {[%clk 0:01:05.9]} 20. Ng3 {[%clk 0:01:58.3]} 20... h6
{[%clk 0:01:02.4]} 21. Bd2 {[%clk 0:01:44.3]} 21... g6 {[%clk 0:00:56.7]} 22.
Ne5 {[%clk 0:01:37.5]} 22... h5 {[%clk 0:00:51.6]} 23. Bg5 {[%clk 0:01:29.6]}
23... Qg7 {[%clk 0:00:34.4]} 24. h3 {[%clk 0:01:21.4]} 24... Nf8 {[%clk
0:00:21.7]} 25. a4 {[%clk 0:00:55.1]} 25... Ne8 {[%clk 0:00:19.9]} 26. Bd2
{[%clk 0:00:45.2]} 26... f6 {[%clk 0:00:19.2]} 27. Nd3 {[%clk 0:00:44.3]} 27...
Qf7 {[%clk 0:00:17.7]} 28. Ne2 {[%clk 0:00:40]} 28... Ne6 {[%clk 0:00:16.6]} 29.
Nef4 {[%clk 0:00:33.9]} 29... Nxf4 {[%clk 0:00:14.9]} 30. Bxf4 {[%clk
0:00:33.1]} 30... Bxf4 {[%clk 0:00:13.8]} 31. Nxf4 {[%clk 0:00:34]} 31... Ng7
{[%clk 0:00:13.6]} 32. Qb4 {[%clk 0:00:29.9]} 32... Re8 {[%clk 0:00:11.2]} 33.
Rxe8+ {[%clk 0:00:29.2]} 33... Nxe8 {[%clk 0:00:11.1]} 34. Qa5 {[%clk
0:00:27.7]} 34... Qc7 {[%clk 0:00:05.7]} 35. Qxc7 {[%clk 0:00:25.9]} 35... Nxc7
{[%clk 0:00:06.4]} 36. Nxg6 {[%clk 0:00:26.3]} 36... Ne6 {[%clk 0:00:05.8]} 37.
Ne7+ {[%clk 0:00:24]} 37... Kf7 {[%clk 0:00:06.1]} 38. Nf5 {[%clk 0:00:24.4]}
38... b6 {[%clk 0:00:04]} 39. g3 {[%clk 0:00:23]} 39... c5 {[%clk 0:00:03.7]}
40. Kf1 {[%clk 0:00:21.6]} 40... cxd4 {[%clk 0:00:02.8]} 41. Nxd4 {[%clk
0:00:19.3]} 41... Nc5 {[%clk 0:00:02.1]} 42. b3 {[%clk 0:00:19.1]} 42... a6
{[%clk 0:00:02.5]} 43. Ke2 {[%clk 0:00:18.1]} 43... Ne4 {[%clk 0:00:02.5]} 44.
f3 {[%clk 0:00:12.6]} 44... Nxc3+ {[%clk 0:00:02.8]} 45. Kd2 {[%clk 0:00:11.7]}
45... Na2 {[%clk 0:00:03.1]} 46. Nc6 {[%clk 0:00:11.9]} 46... Ke6 {[%clk
0:00:02.2]} 47. g4 {[%clk 0:00:11.9]} 47... hxg4 {[%clk 0:00:01.9]} 48. fxg4
{[%clk 0:00:12.8]} 48... d4 {[%clk 0:00:02.3]} 49. Nxd4+ {[%clk 0:00:12.5]}
49... Ke5 {[%clk 0:00:02.1]} 50. Ne2 {[%clk 0:00:11.3]} 50... Nb4 {[%clk
0:00:01.8]} 51. h4 {[%clk 0:00:11.6]} 51... Nd5 {[%clk 0:00:02.3]} 52. h5 {[%clk
0:00:12.1]} 52... f5 {[%clk 0:00:02.6]} 53. gxf5 {[%clk 0:00:12.2]} 53... Kxf5
{[%clk 0:00:02.8]} 54. Kd3 {[%clk 0:00:12.1]} 54... Kg5 {[%clk 0:00:03.1]} 55.
Kd4 {[%clk 0:00:12.3]} 55... Nb4 {[%clk 0:00:03.3]} 56. Nc3 {[%clk 0:00:09.4]}
56... Kxh5 {[%clk 0:00:03.2]} 57. Nd5 {[%clk 0:00:09.8]} 57... Nc2+ {[%clk
0:00:02.4]} 58. Kc3 {[%clk 0:00:09.8]} 58... Ne1 {[%clk 0:00:02.7]} 59. Nxb6
{[%clk 0:00:09.8]} 59... Kg6 {[%clk 0:00:03.3]} 60. b4 {[%clk 0:00:10.1]} 60...
Kf6 {[%clk 0:00:03.8]} 61. b5 {[%clk 0:00:09]} 61... a5 {[%clk 0:00:02.8]} 62.
Nc4 {[%clk 0:00:08.7]} 62... Ke6 {[%clk 0:00:03.2]} 63. Nxa5 {[%clk 0:00:09]}
63... Kd6 {[%clk 0:00:03.9]} 64. Nb3 {[%clk 0:00:09.2]} 64... Nf3 {[%clk
0:00:04]} 65. a5 {[%clk 0:00:08.5]} 65... Ne5 {[%clk 0:00:04.5]} 66. Kb4 {[%clk
0:00:07.8]} 66... Nd3+ {[%clk 0:00:04.4]} 67. Kc3 {[%clk 0:00:08.3]} 67... Ne5
{[%clk 0:00:04.8]} 68. a6 {[%clk 0:00:08.5]} 68... Nd7 {[%clk 0:00:04.8]} 69.
Kb4 {[%clk 0:00:08.2]} 69... Kc7 {[%clk 0:00:04.9]} 70. Nc5 {[%clk 0:00:08]}
70... Nb6 {[%clk 0:00:05]} 71. Na4 {[%clk 0:00:08.3]} 71... Nd7 {[%clk
0:00:04.4]} 72. Ka5 {[%clk 0:00:08.7]} 72... Kb8 {[%clk 0:00:04]} 73. b6 {[%clk
0:00:09.2]} 73... Ne5 {[%clk 0:00:04.3]} 74. Kb5 {[%clk 0:00:09.5]} 74... Nd3
{[%clk 0:00:04.2]} 75. Nc5 {[%clk 0:00:09.5]} 75... Ne5 {[%clk 0:00:04.1]} 76.
Ne6 {[%clk 0:00:09.8]} 76... Nd7 {[%clk 0:00:04.1]} 77. Nc7 {[%clk 0:00:09.3]}
77... Nxb6 {[%clk 0:00:03.1]} 78. Kxb6 {[%clk 0:00:09.5]} 78... Kc8 {[%clk
0:00:03.8]} 79. a7 {[%clk 0:00:10.2]} 1-0